bitfinex-derivatives/quotes_ETHF0:USTF0_20240830
["timestamp","ask_amount","ask_price","bid_price","bid_amount"]
[1724987610408,0.39826,2510.8,2510.5,3.6061]
[1724987610607,0.4022339,2510.9,2510.5,3.6061]
[1724987611115,0.0039839,2510.9,2510.8,0.39825]
[1724987611317,0.0039839,2510.9,2510.8,3.60605]
[1724987611617,0.39814,2511.6,2511.2,0.39818]
[1724987611818,3.2078,2511.9,2510.8,4.2566]
[1724987612116,0.39813,2511.6,2511.1,3.2078]
[1724987612316,0.39813,2511.6,2511.3,0.39818]
[1724987612529,0.99525,2511.8,2511.2,40.80597586]
[1724987612811,0.39818,2511.3,2511.2,0.00597586]
[1724987613915,4.20316,2511.6,2511.2,3.98837586]
[1724987613916,3.2078,2511.6,2511.2,3.98837586]
[1724987614117,3.2078,2511.6,2511.2,0.00597586]
[1724987614327,3.60593,2511.6,2511.3,0.39817]
[1724987614617,3.2078,2511.6,2511.3,0.39817]
[1724987614813,3.60593,2511.6,2511.3,0.39817]
[1724987615216,0.39815,2511.5,2511.2,0.40415586]
[1724987615516,0.39815,2511.5,2511.2,0.00597586]
[1724987615716,0.39815,2511.5,2511.2,0.40416586]
[1724987616117,0.39816,2511.4,2511.2,0.00597586]
[1724987616513,0.39816,2511.4,2511.2,3.98837586]
[1724987616911,0.39815,2511.5,2511.2,0.00597586]
[1724987617110,0.39815,2511.5,2511.2,0.40416586]
[1724987617515,3.2078,2511.6,2511.2,0.00597586]
[1724987617722,0.39818,2511.3,2511.2,0.00597586]
[1724987618520,3.60594,2511.6,2511.2,0.40416586]
[1724987618722,0.99537,2511.5,2511.2,0.00597586]
[1724987618922,0.39818,2511.3,2511.2,0.00597586]
[1724987619915,0.39817,2511.4,2511.2,0.00597586]
[1724987620219,0.39818,2511.3,2511.2,0.00597586]
[1724987620416,0.39817,2511.4,2511.2,0.00597586]
[1724987620620,0.39818,2511.3,2511.2,0.00597586]
[1724987620819,1.0584,2511.5,2511.2,0.40416586]
[1724987621016,0.39816,2511.4,2511.2,0.40416586]
[1724987621216,1.45655,2511.5,2511.2,0.40416586]
[1724987621411,0.39817,2511.4,2511.2,0.00597586]
[1724987622622,0.39817,2511.4,2511.2,0.40416586]
[1724987622827,0.39817,2511.4,2511.2,0.00597586]
[1724987623933,1.45655,2511.5,2511.2,0.40415586]
[1724987624232,1.0584,2511.5,2511.3,0.39818]
[1724987625539,3.2078,2511.7,2511.2,0.00597586]
[1724987625737,3.2078,2511.7,2511.5,0.39814]
[1724987626632,5.1905,2512.0,2511.6,3.2078]
[1724987626833,5.1905,2512.0,2511.6,3.60592]
[1724987627037,0.3981,2511.8,2511.6,3.2078]
[1724987627239,0.39811,2511.7,2511.6,3.2078]
[1724987627639,0.3981,2511.8,2511.6,3.60593]
[1724987627837,0.39809,2511.9,2511.6,3.60593]
[1724987628729,5.58857,2512.0,2511.7,0.39811]
[1724987628936,0.39808,2511.9,2511.7,0.39811]
[1724987629141,0.39808,2511.9,2511.6,3.60592]
[1724987629544,0.39808,2511.9,2511.7,0.39811]
[1724987630139,0.39808,2511.9,2511.6,0.39812]
[1724987630647,5.1905,2512.0,2511.5,0.39814]
[1724987630945,0.39812,2511.7,2511.5,0.39814]
[1724987631340,4.20301,2511.9,2511.4,0.39815]
[1724987631642,4.20301,2511.9,2511.3,3.2078]
[1724987631643,3.2078,2511.9,2511.3,3.2078]
[1724987631842,3.60589,2511.9,2511.3,44.0078]
[1724987632239,0.39809,2511.9,2511.6,0.39811]
[1724987632438,0.39809,2511.9,2511.3,44.0078]
[1724987632439,0.39807,2512.0,2511.3,45.00322]
[1724987632642,5.22601,2512.2,2511.5,0.39813]
[1724987632947,0.3981,2511.8,2511.6,0.39813]
[1724987633147,0.3981,2511.8,2511.5,0.39813]
[1724987633347,0.99513,2512.1,2511.4,3.2078]
[1724987633542,0.3981,2511.8,2511.5,0.39814]
[1724987633735,0.39811,2511.7,2511.5,0.39814]
[1724987633939,0.39811,2511.7,2511.4,3.60595]
[1724987634149,0.99525,2511.8,2511.4,3.2078]
[1724987634348,0.39814,2511.6,2511.4,3.60595]
[1724987635144,0.39814,2511.6,2511.4,3.2078]
[1724987635647,0.39814,2511.5,2511.4,3.2078]
[1724987635847,0.39814,2511.6,2511.4,3.2078]
[1724987636050,1.40822,2511.7,2511.4,3.60595]
[1724987636245,3.2078,2511.9,2511.6,0.39811]
[1724987636441,0.99517,2512.0,2511.4,3.2078]
[1724987636642,0.39812,2511.7,2511.5,0.39814]
[1724987636841,0.39812,2511.7,2511.4,3.60595]
[1724987637043,0.39812,2511.7,2511.5,0.39814]
[1724987637349,3.2078,2512.0,2511.6,0.39812]
[1724987637550,0.39811,2511.8,2511.5,0.39814]
[1724987638348,3.2078,2512.0,2511.5,0.39814]
[1724987638349,0.39812,2511.7,2511.5,0.39814]
[1724987638548,0.99521,2511.9,2511.4,3.2078]
[1724987638747,0.39814,2511.5,2511.4,3.2078]
[1724987639146,0.39814,2511.5,2511.4,7.1894]
[1724987639348,0.39814,2511.5,2511.4,3.2078]
[1724987639852,0.39814,2511.5,2511.4,7.1894]
[1724987640248,0.39814,2511.5,2511.4,3.2078]
[1724987640839,0.39818,2511.3,2511.2,0.00597586]
[1724987641149,1.96865,2511.6,2511.2,0.00597586]
[1724987641355,0.39818,2511.3,2511.2,0.00597586]
[1724987641740,1.39363,2511.3,2511.2,0.00597586]
[1724987642255,0.39818,2511.3,2511.2,0.00597586]
[1724987643145,3.2078,2511.4,2511.3,0.39818]
[1724987643552,3.2078,2511.4,2511.3,4.37978]
[1724987644047,7.1894,2511.4,2511.2,0.00597586]
[1724987644253,0.39825,2510.9,2510.6,0.9986]
[1724987644556,4.38058,2511.3,2510.4,3.40863312]
[1724987644557,3.2078,2511.1,2510.4,3.40863312]
[1724987644762,1.38643,2511.0,2510.4,0.59915312]
[1724987644955,2.37663,2511.0,2510.4,0.59914312]
[1724987645254,0.39824,2510.9,2510.4,0.00597586]
[1724987645447,0.39826,2510.8,2510.4,0.00597586]
[1724987645644,0.39828,2510.7,2510.4,0.00597586]
[1724987645846,0.39826,2510.8,2510.4,0.00597586]
[1724987646058,1.98437586,2511.0,2510.4,0.00597586]
[1724987646059,0.39825,2510.9,2510.4,0.00597586]
[1724987647253,1.98437586,2511.0,2510.4,0.00597586]
[1724987647450,0.39828,2510.7,2510.4,0.00597586]
[1724987647653,0.39825,2510.9,2510.4,0.00597586]
[1724987648164,0.39826,2510.8,2510.4,0.00597586]
[1724987648357,1.98437586,2511.0,2510.4,0.00597586]
[1724987648559,1.98437586,2511.0,2510.5,3.44]
[1724987648856,0.00597586,2511.0,2510.8,0.39825]
[1724987649053,0.00597586,2511.0,2510.6,3.01780347]
[1724987649054,0.00597586,2511.0,2510.7,0.39826]
[1724987649256,0.00597586,2511.0,2510.8,1.43005]
[1724987649561,0.00597586,2511.0,2510.8,1.0318]
[1724987650257,0.0023345,2511.0,2510.9,4.38064]
[1724987650559,0.0023345,2511.0,2510.9,8.84681312]
[1724987650947,0.0023345,2511.0,2510.9,14.84681312]
[1724987651151,5.2404,2511.4,2510.9,14.84681312]
[1724987651152,3.2078,2511.4,2510.9,18.34712888]
[1724987651461,3.2078,2511.4,2511.2,0.39819]
[1724987651766,3.2078,2511.4,2511.3,41.19818]
[1724987651965,2.3992,2511.8,2511.3,42.23899455]
[1724987652857,0.39811,2511.7,2511.3,41.84083455]
[1724987653061,3.2078,2511.7,2511.3,1.04083455]
[1724987653356,0.39818,2511.3,2511.2,1.04083455]
[1724987653557,0.39819,2511.2,2511.1,4.24863455]
[1724987653751,1.43289,2511.2,2511.1,3.2078]
[1724987654147,0.39821,2511.1,2510.9,1.04083455]
[1724987656162,0.39821,2511.1,2510.8,2.07263455]
[1724987656362,0.39821,2511.1,2510.9,1.04083455]
[1724987656754,1.4329,2511.2,2510.9,1.04083455]
[1724987657159,1.0347,2511.2,2510.9,1.04083455]
[1724987657460,0.39815,2511.5,2511.2,0.39819]
[1724987657661,0.39815,2511.5,2511.0,3.03229929]
[1724987657662,1.39272,2511.7,2511.3,0.39816]
[1724987657863,1.39272,2511.7,2510.7,1.04083455]
[1724987657864,0.99549,2511.2,2510.7,1.04083455]
[1724987658064,0.39823,2511.0,2510.6,1.43911455]
[1724987658363,0.39824,2510.9,2510.6,1.43911455]
[1724987658558,5.2508,2511.1,2510.8,0.39825]
[1724987658759,3.2078,2511.1,2510.8,0.39824]
[1724987659365,3.2078,2511.1,2510.8,1.43907455]
[1724987660064,3.2078,2511.1,2510.9,0.39823]
[1724987660667,3.2078,2511.1,2510.7,2.54565969]
[1724987660668,3.60601,2511.1,2510.7,2.44549455]
[1724987660861,0.39822,2511.0,2510.7,2.04723455]
[1724987661061,3.2078,2511.1,2510.7,1.04083455]
[1724987661462,0.39822,2511.0,2510.7,1.04083455]
[1724987661765,0.39822,2511.0,2510.6,1.43911455]
[1724987662166,0.39824,2510.9,2510.6,1.43911455]
[1724987662667,0.39824,2510.9,2510.5,4.74705969]
[1724987662668,0.99556,2511.0,2510.5,2.58009424]
[1724987662861,0.39827,2510.8,2510.5,1.04083455]
[1724987663172,0.9956,2510.9,2510.5,1.04083455]
[1724987663371,0.39828,2510.7,2510.5,1.04083455]
[1724987663568,0.39828,2510.7,2510.4,1.54523555]
[1724987663569,0.39828,2510.7,2510.4,1.04681041]
[1724987663767,0.39829,2510.6,2510.4,1.04681041]
[1724987663965,2.0585,2510.8,2510.4,1.04681041]
[1724987663966,0.39828,2510.7,2510.4,1.44513041]
[1724987664480,0.3983,2510.5,2510.4,0.00597586]
[1724987664674,4.3815,2510.5,2510.4,0.00597586]
[1724987665063,10.3815,2510.5,2510.4,0.00597586]
[1724987665257,11.37726,2510.5,2510.4,0.00597586]
[1724987665659,10.3815,2510.5,2510.4,0.00597586]
[1724987665871,4.3815,2510.5,2510.4,0.00597586]
[1724987667369,3.2078,2510.6,2510.4,0.00597586]
[1724987667677,0.3983,2510.5,2510.4,0.00597586]
[1724987668068,3.60609,2510.6,2510.4,0.00597586]
[1724987668273,3.2078,2510.6,2510.4,0.00597586]
[1724987668474,3.60609,2510.6,2510.4,0.00597586]
[1724987668770,3.2078,2510.6,2510.4,0.00597586]
[1724987669072,3.60609,2510.6,2510.4,0.00597586]
[1724987669575,3.2078,2510.6,2510.4,0.00597586]
[1724987669969,3.8383,2510.5,2510.4,0.00597586]
[1724987670768,0.3983,2510.5,2510.4,0.00597586]
[1724987671968,4.3815,2510.5,2510.4,0.00597586]
[1724987673075,0.3983,2510.5,2510.4,0.00597586]
[1724987677174,3.6061,2510.6,2510.4,0.00597586]
[1724987677577,3.6061,2510.6,2510.4,1.07967586]
[1724987677771,3.2078,2510.6,2510.4,1.47798586]
[1724987677975,0.39828,2510.7,2510.4,1.07967586]
[1724987678178,0.3983,2510.5,2510.4,0.00597586]
[1724987680183,1.39406,2510.5,2510.4,0.00597586]
[1724987681275,8.81726,2510.5,2510.4,0.00597586]
[1724987685085,9.81302,2510.5,2510.4,0.00597586]
[1724987685285,15.81302,2510.5,2510.4,5.86e-06]
[1724987686693,16.10397577,2510.5,2510.4,5.86e-06]
[1724987690191,0.3983,2510.5,2510.4,5.86e-06]
[1724987690402,4.20946,2510.7,2510.4,3.98320586]
[1724987690403,0.3983,2510.6,2510.4,3.98320586]
[1724987690586,0.39829,2510.6,2510.5,0.9873]
[1724987692292,1.39401,2510.6,2510.5,0.9873]
[1724987697991,0.39829,2510.6,2510.5,0.9873]
[1724987700595,3.61205,2510.7,2510.5,0.9873]
[1724987700891,0.99518,2512.0,2511.0,0.99555]
[1724987701094,3.2078,2512.1,2511.5,3.44]
[1724987701300,3.2078,2512.1,2511.5,4.48130755]
[1724987701594,0.39809,2511.9,2511.5,45.67943755]
[1724987701793,0.39809,2511.9,2511.5,42.23943755]
[1724987701988,3.2078,2512.1,2511.5,45.82290755]
[1724987701989,0.39807,2512.0,2511.5,45.82290755]
[1724987702187,3.2078,2512.1,2511.6,1.0487]
[1724987702388,3.2078,2512.1,2511.7,2.0421]
[1724987702896,0.28226669,2512.8,2511.7,2.0421]
[1724987702897,0.39794,2512.8,2512.2,0.39802]
[1724987703190,1.0106,2512.9,2512.2,0.39802]
[1724987703191,0.39793,2512.9,2512.3,1.0487]
[1724987703391,0.39793,2512.9,2512.4,1.048]
[1724987703594,3.6057,2513.1,2512.4,4.2558]
[1724987703795,3.2078,2512.8,2512.4,2.0048]
[1724987704098,3.60575,2512.8,2512.4,2.0048]
[1724987704496,3.2078,2512.8,2512.4,2.0048]
[1724987705097,0.39795,2512.7,2512.4,2.0048]
[1724987705294,3.2078,2512.8,2512.4,1.048]
[1724987705493,3.2078,2512.8,2512.6,3.44]
[1724987705694,6.6478,2513.4,2512.6,6.6478]
[1724987706002,7.04565,2513.4,2512.7,0.39795]
[1724987706299,7.04565,2513.4,2512.6,7.04576]
[1724987706300,0.39788,2513.2,2512.6,7.04576]
[1724987706490,6.6478,2513.4,2512.6,6.6478]
[1724987706891,6.6478,2513.4,2512.6,3.2078]
[1724987707097,0.3979,2513.1,2512.7,40.8]
[1724987707287,0.39793,2512.9,2512.7,40.8]
[1724987707489,3.2078,2513.1,2512.6,3.2078]
[1724987707803,1.0551,2513.0,2512.6,3.2078]
[1724987708292,0.39795,2512.8,2512.6,3.2078]
[1724987708494,1.0551,2513.0,2512.6,3.2078]
[1724987708906,0.39795,2512.8,2512.6,3.2078]
[1724987709794,0.39795,2512.7,2512.6,3.2078]
[1724987711192,3.98,2512.7,2512.3,0.9827]
[1724987711398,0.39802,2512.3,2512.2,0.00597586]
[1724987714402,0.39802,2512.3,2511.2,3.2078]
[1724987714403,13.4208,2512.3,2511.2,3.2078]
[1724987714704,13.4208,2512.3,2510.9,0.9861]
[1724987714705,3.44,2511.6,2510.9,0.9861]
[1724987714896,0.39825,2510.8,2510.7,0.9539]
[1724987715100,3.2078,2511.1,2510.5,5.2103]
[1724987715297,0.39826,2510.8,2510.5,5.2103]
[1724987715502,0.00597586,2510.9,2510.5,5.2103]
[1724987715803,0.39814,2511.6,2510.8,6.6478]
[1724987716108,6.6478,2511.7,2510.9,0.9539]
[1724987716409,0.39822,2511.1,2510.9,0.9539]
[1724987716799,0.39822,2511.1,2510.9,4.9363]
[1724987716998,0.39822,2511.0,2510.9,4.9363]
[1724987717198,0.39822,2511.0,2510.9,0.9539]
[1724987717498,0.39822,2511.1,2510.9,0.9539]
[1724987717998,0.39822,2511.0,2510.9,0.9539]
[1724987718302,0.3983,2510.5,2510.4,0.00597586]
[1724987719308,0.39829,2510.6,2510.4,3.98917586]
[1724987719611,0.3983,2510.5,2510.4,0.00597586]
[1724987720109,3.2078,2510.8,2510.4,0.00597586]
[1724987720805,0.3983,2510.6,2510.4,0.00597586]
[1724987721703,3.2078,2510.8,2510.4,0.00597586]
[1724987721901,0.3983,2510.6,2510.4,0.00597586]
[1724987722203,0.39828,2510.7,2510.4,0.00597586]
[1724987722402,0.39821,2511.1,2510.4,3.98917586]
[1724987722699,0.39817,2511.4,2511.1,0.3982]
[1724987722901,0.9559,2511.6,2511.4,0.39814]
[1724987723104,0.39812,2511.7,2511.4,0.39814]
[1724987723309,0.39814,2511.6,2511.2,0.39818]
[1724987723710,0.39811,2511.8,2511.1,40.8]
[1724987723901,0.39811,2511.8,2511.5,0.39814]
[1724987724105,0.39812,2511.7,2511.4,0.39815]
[1724987724311,3.44,2511.8,2511.1,40.8]
[1724987724607,0.39815,2511.5,2511.2,0.39818]
[1724987725415,0.39812,2511.7,2511.4,0.39815]
[1724987726614,0.3981,2511.8,2511.5,0.39814]
[1724987727108,4.62898,2512.0,2511.3,3.44]
[1724987727297,4.62898,2512.0,2511.7,0.3981]
[1724987727500,4.62898,2512.0,2511.6,0.39812]
[1724987727501,0.39808,2511.9,2511.6,0.39812]
[1724987727912,4.62897,2512.0,2511.7,0.39811]
[1724987728112,0.39809,2511.9,2511.6,0.39812]
[1724987729511,4.2309,2512.0,2511.5,3.2078]
[1724987729719,1.37672,2512.3,2511.6,3.44]
[1724987729919,1.37672,2512.3,2512.0,0.39805]
[1724987730115,0.398,2512.5,2511.8,6.6478]
[1724987730427,0.398,2512.5,2512.2,0.39802]
[1724987730623,0.39799,2512.5,2512.2,0.39802]
[1724987730923,0.39799,2512.5,2512.2,0.39803]
[1724987731121,1.35758,2512.6,2512.3,0.39802]
[1724987732022,0.39794,2512.8,2512.5,0.39797]
[1724987732326,1.0302,2512.9,2512.4,0.39799]
[1724987732327,0.39795,2512.7,2512.4,0.39799]
[1724987732913,0.39797,2512.6,2512.4,0.39799]
[1724987733225,1.0302,2512.9,2512.3,0.39801]
[1724987733737,0.39798,2512.6,2512.4,0.398]
[1724987733927,1.0302,2512.9,2512.5,0.39798]
[1724987734227,0.39795,2512.8,2512.5,0.39798]
[1724987734416,0.39795,2512.8,2512.2,0.9963]
[1724987734417,3.2078,2513.0,2512.4,3.2078]
[1724987734616,3.2078,2513.0,2512.5,3.44]
[1724987734826,3.2078,2513.0,2512.8,0.39793]
[1724987735327,3.60571,2513.0,2512.7,0.39794]
[1724987736126,3.2078,2513.0,2512.8,0.39793]
[1724987738225,0.3979,2513.1,2512.8,0.39793]
[1724987738429,0.39789,2513.1,2512.9,0.39792]
[1724987738626,5.1913,2513.4,2512.7,3.44]
[1724987738928,0.39788,2513.2,2512.9,0.39792]
[1724987739816,0.39789,2513.1,2512.9,0.39792]
[1724987740223,0.39788,2513.2,2512.9,0.39792]
[1724987740615,0.39789,2513.1,2512.9,0.39792]
[1724987741424,0.39788,2513.2,2512.9,0.39792]
[1724987741833,0.39789,2513.1,2512.9,0.39792]
[1724987742035,0.39789,2513.1,2512.8,0.39793]
[1724987742240,0.3979,2513.1,2512.8,0.39794]
[1724987742929,0.39788,2513.2,2512.9,0.39792]
[1724987743126,0.39787,2513.3,2513.0,0.3979]
[1724987743330,1.0173,2513.4,2512.9,0.39791]
[1724987743528,0.3979,2513.1,2512.9,0.39791]
[1724987743922,0.39789,2513.2,2512.9,0.39791]
[1724987744227,0.3979,2513.1,2512.8,0.39793]
[1724987744524,0.3979,2513.1,2512.9,0.39792]
[1724987744727,0.39788,2513.2,2513.0,0.39791]
[1724987745231,0.39788,2513.2,2513.0,0.3979]
[1724987745627,0.39788,2513.2,2512.9,0.39791]
[1724987745826,0.39788,2513.2,2513.0,0.3979]
[1724987747834,0.39789,2513.1,2512.7,6.6478]
[1724987748031,0.39789,2513.1,2512.9,0.39792]
[1724987748421,0.39789,2513.1,2512.9,4.37712]
[1724987748824,2.01193,2513.4,2512.9,3.9792]
[1724987749019,2.01193,2513.4,2512.9,0.39792]
[1724987749232,2.01193,2513.4,2513.0,0.39791]
[1724987749629,0.39789,2513.2,2512.9,0.39791]
[1724987750238,0.39789,2513.1,2512.9,0.39791]
[1724987750426,0.39789,2513.1,2512.9,4.37711]
[1724987751135,0.39788,2513.2,2513.0,0.3979]
[1724987751332,0.39789,2513.2,2512.9,0.39791]
[1724987751632,0.39789,2513.2,2513.0,0.39791]
[1724987752134,0.39789,2513.1,2512.9,0.39791]
[1724987752330,0.39788,2513.2,2513.0,0.39791]
[1724987752635,0.39792,2512.9,2512.8,4.2615]
[1724987753032,0.39792,2512.9,2512.8,8.2407]
[1724987753233,0.39791,2513.0,2512.8,8.2407]
[1724987753537,0.39791,2513.0,2512.8,4.2615]
[1724987753739,0.39791,2513.0,2512.8,4.65943]
[1724987754831,0.39786,2513.3,2513.1,0.39789]
[1724987755035,0.39791,2513.0,2512.9,3.44597586]
[1724987755438,0.39791,2513.0,2512.9,7.42517586]
[1724987755938,0.39791,2513.0,2512.9,3.44597586]
[1724987756940,0.99465,2513.3,2512.9,3.44597586]
[1724987757133,0.39791,2513.0,2512.9,3.44597586]
[1724987757545,0.39791,2513.0,2512.9,3.84389586]
[1724987757838,0.3979,2513.1,2512.9,7.82309586]
[1724987758138,0.3979,2513.1,2512.9,3.84389586]
[1724987758338,0.3979,2513.1,2513.0,0.39791]
[1724987758535,0.39788,2513.2,2513.0,0.39791]
[1724987759135,0.39787,2513.3,2513.2,0.39787]
[1724987759332,0.39787,2513.3,2513.1,0.39788]
[1724987761539,0.39787,2513.3,2513.2,0.39787]
[1724987761739,3.60565,2513.4,2513.2,0.39787]
[1724987761939,0.28169341,2513.6,2513.5,0.39783]
[1724987762140,3.2078,2514.1,2513.5,6.6478]
[1724987762340,0.99415,2514.6,2514.3,0.39769]
[1724987762341,0.39766,2514.6,2514.3,0.39769]
[1724987762541,0.39765,2514.7,2514.4,0.39768]
[1724987762846,0.39765,2514.7,2514.2,3.21377586]
[1724987762847,3.2078,2514.7,2514.2,0.00597586]
[1724987763044,0.3977,2514.3,2514.2,0.00597586]
[1724987763544,11.36956,2514.3,2514.2,0.00597586]
[1724987763755,0.3978,2513.7,2513.6,44.0078]
[1724987763935,0.3978,2513.7,2513.6,3.2078]
[1724987764251,0.39782,2513.6,2513.1,3.2078]
[1724987764432,1.40272,2513.6,2513.3,0.39785]
[1724987764832,1.0049,2513.6,2513.2,3.44597586]
[1724987765038,0.39786,2513.3,2513.2,0.00597586]
[1724987765246,0.39785,2513.4,2513.2,0.00597586]
[1724987765444,0.39785,2513.4,2513.2,0.40384586]
[1724987765636,0.39784,2513.5,2513.2,0.40384586]
[1724987766338,0.39783,2513.5,2513.2,0.40384586]
[1724987766750,1.0049,2513.6,2513.2,0.00597586]
[1724987767047,1.40272,2513.6,2513.3,0.39785]
[1724987767245,0.39783,2513.5,2513.2,0.40384586]
[1724987767848,0.39785,2513.4,2513.2,0.00597586]
[1724987768153,0.39785,2513.4,2513.2,0.40384586]
[1724987768541,0.39784,2513.5,2513.2,0.40384586]
[1724987769043,1.0049,2513.6,2513.2,0.00597586]
[1724987769240,0.39783,2513.5,2513.2,0.00597586]
[1724987769435,0.39783,2513.5,2513.3,0.39786]
[1724987769753,1.40272,2513.6,2513.2,0.00597586]
[1724987770043,1.40271,2513.6,2513.4,0.39783]
[1724987770446,1.40271,2513.6,2513.3,0.39785]
[1724987770837,0.39783,2513.5,2513.2,0.00597586]
[1724987771041,0.39785,2513.4,2513.2,0.00597586]
[1724987771238,0.39786,2513.3,2513.2,0.00597586]
[1724987771446,7.81706,2513.3,2513.2,0.00597586]
[1724987771745,4.37706,2513.3,2513.2,0.00597586]
[1724987772652,0.39784,2513.4,2513.2,0.00597586]
[1724987772850,3.2078,2513.5,2513.3,0.39786]
[1724987773146,3.2078,2513.5,2513.2,0.00597586]
[1724987773147,3.2078,2513.5,2513.4,0.39784]
[1724987773544,1.0049,2513.6,2513.5,0.39783]
[1724987773746,1.02067586,2513.7,2513.5,0.39783]
[1724987773747,0.00597586,2513.7,2513.5,0.39783]
[1724987774544,0.00597586,2513.7,2513.2,4.49037586]
[1724987774752,0.40377586,2513.7,2513.5,0.39782]
[1724987775361,0.00597586,2513.7,2513.6,0.39781]
[1724987775751,0.00597586,2513.7,2513.6,4.37621]
[1724987777548,0.00597586,2513.7,2513.6,0.39781]
[1724987777853,0.00597586,2513.7,2513.6,4.37621]
[1724987778659,4.174,2514.3,2513.6,9.40775008]
[1724987778852,0.39771,2514.3,2514.0,0.39774]
[1724987779157,0.9741,2514.4,2513.9,0.39776]
[1724987779355,4.1819,2514.4,2513.9,40.8]
[1724987779559,0.39772,2514.2,2513.9,41.19775]
[1724987779757,0.39774,2514.1,2513.8,1.43759119]
[1724987779961,7.6219,2514.4,2513.7,4.24762119]
[1724987780160,0.39776,2514.0,2513.7,3.60559]
[1724987780353,0.39774,2514.1,2513.8,0.39778]
[1724987780960,0.39775,2514.0,2513.7,3.60559]
[1724987781155,0.39772,2514.2,2513.7,3.2078]
[1724987781365,0.39772,2514.2,2513.9,0.39775]
[1724987781959,2.40771,2514.3,2514.0,0.39774]
[1724987782266,2.40771,2514.3,2514.1,0.39773]
[1724987782465,2.01,2514.3,2514.2,0.39772]
[1724987782661,3.6055,2514.4,2514.1,0.39773]
[1724987782859,0.3977,2514.3,2514.1,0.39773]
[1724987783064,3.60549,2514.4,2514.2,0.39771]
[1724987783760,0.39769,2514.4,2514.2,0.39771]
[1724987783966,1.9975,2514.5,2514.4,0.39768]
[1724987784161,1.0455,2514.5,2514.4,0.39768]
[1724987784366,3.2078,2514.7,2514.6,0.39765]
[1724987784659,1.0183,2514.8,2514.7,0.39764]
[1724987784853,5.39272,2514.8,2514.6,0.39765]
[1724987785054,1.0183,2514.8,2514.7,0.39764]
[1724987785259,0.9691,2514.9,2514.7,0.39762]
[1724987785457,0.9691,2514.9,2514.5,0.00597586]
[1724987785458,0.9691,2514.9,2514.8,0.39762]
[1724987785658,1.0183,2515.1,2514.8,0.39762]
[1724987785866,1.0183,2515.1,2515.0,0.39759]
[1724987786161,7.7681,2515.6,2515.2,0.39755]
[1724987786162,0.39751,2515.5,2515.2,0.39755]
[1724987786373,1.0183,2515.5,2515.3,0.39754]
[1724987786774,1.0183,2515.5,2515.0,1.0319]
[1724987787272,7.614,2515.8,2515.3,0.39753]
[1724987787474,0.3975,2515.6,2515.2,0.39755]
[1724987788279,0.3975,2515.6,2515.1,40.8]
[1724987788478,0.3975,2515.6,2515.2,0.39755]
[1724987788665,1.0023,2515.7,2515.1,44.24]
[1724987788862,5.1964,2515.8,2515.5,0.3975]
[1724987789466,0.39744,2516.0,2515.5,3.44]
[1724987789668,1.0023,2516.1,2515.6,3.2078]
[1724987789868,4.57141,2516.2,2515.6,3.2078]
[1724987789869,0.39739,2516.3,2515.9,0.39744]
[1724987790465,1.41978,2516.4,2515.8,0.00596327]
[1724987790667,1.41978,2516.4,2516.1,0.39741]
[1724987790868,1.41978,2516.4,2516.0,0.39742]
[1724987791069,1.0224,2516.4,2515.9,3.60524]
[1724987791367,11.9753,2516.5,2516.2,0.39739]
[1724987791368,1.0023,2516.5,2516.2,0.39739]
[1724987791865,3.60515,2516.6,2516.3,0.39738]
[1724987792063,3.60515,2516.6,2516.2,3.83739]
[1724987792264,0.39735,2516.6,2516.3,0.957]
[1724987792866,0.39735,2516.6,2516.4,40.8]
[1724987793069,5.58901,2516.8,2516.5,0.39735]
[1724987793271,6.799,2517.0,2516.7,0.39732]
[1724987793272,0.39728,2517.0,2516.7,0.39732]
[1724987793867,0.39729,2516.9,2516.6,0.39733]
[1724987794069,0.39729,2516.9,2516.5,3.2078]
[1724987794277,0.39731,2516.8,2516.5,3.60515]
[1724987794478,0.9432,2517.1,2516.5,3.2078]
[1724987794672,0.39732,2516.7,2516.5,3.2078]
[1724987795371,0.39727,2517.0,2516.6,0.39733]
[1724987795572,0.39727,2517.0,2516.7,0.39731]
[1724987795883,0.39729,2516.9,2516.5,3.2078]
[1724987796073,0.39731,2516.8,2516.5,3.60514]
[1724987796269,0.9432,2517.1,2516.5,3.2078]
[1724987796473,0.39728,2517.0,2516.7,0.39731]
[1724987796875,3.2078,2517.2,2516.6,3.44]
[1724987797066,0.39726,2517.1,2516.8,0.39729]
[1724987797272,0.39727,2517.0,2516.8,0.39729]
[1724987797571,0.39727,2517.1,2516.6,3.44]
[1724987797772,3.2078,2517.2,2516.6,3.44]
[1724987797773,3.60505,2517.2,2516.6,3.44]
[1724987797972,5.1996,2517.3,2516.6,3.44]
[1724987797973,0.39726,2517.1,2516.6,3.44]
[1724987798280,0.39725,2517.2,2516.9,0.39729]
[1724987798477,0.39723,2517.3,2516.9,0.39728]
[1724987799079,0.39722,2517.4,2516.9,4.3876]
[1724987799275,0.39722,2517.4,2517.0,0.39726]
[1724987799476,0.39723,2517.3,2517.0,0.39726]
[1724987799782,0.39722,2517.4,2517.0,0.39726]
[1724987800172,0.9552,2517.5,2517.0,0.39726]
[1724987800372,4.163,2517.5,2516.9,4.78488]
[1724987800582,0.39724,2517.2,2516.9,4.78488]
[1724987800973,0.39724,2517.3,2516.9,4.78488]
[1724987801174,0.39725,2517.2,2516.9,4.78488]
[1724987801973,0.39723,2517.3,2517.0,0.39727]
[1724987802376,0.39724,2517.2,2516.9,4.3876]
[1724987802681,4.163,2517.5,2516.5,6.6478]
[1724987802682,3.2078,2517.1,2516.5,6.6478]
[1724987802876,0.99323,2516.9,2516.5,6.6478]
[1724987803074,0.3973,2516.9,2516.7,0.39732]